[Event "*** Titled Tuesday Blitz"]
[Site "Chess.com"]
[Date "2020.04.07"]
[Round "9"]
[White "kleopl"]
[Black "StarkAst"]
[Result "1-0"]
[WhiteElo "2395"]
[BlackElo "2560"]
[TimeControl "180+1"]
[EndTime "14:47:15 PDT"]
[Termination "kleopl won by resignation"]

1. c4 {[%clk 0:03:00.9]} 1... e6 {[%clk 0:02:46.2]} 2. Nc3 {[%clk 0:03:00.1]}
2... d5 {[%clk 0:02:45]} 3. d4 {[%clk 0:02:59.8]} 3... c6 {[%clk 0:02:44.7]} 4.
Nf3 {[%clk 0:02:55.2]} 4... Nf6 {[%clk 0:02:43.9]} 5. cxd5 {[%clk 0:02:54.9]}
5... exd5 {[%clk 0:02:43.6]} 6. Bg5 {[%clk 0:02:55.2]} 6... Be7 {[%clk
0:02:43.6]} 7. e3 {[%clk 0:02:55.5]} 7... Bf5 {[%clk 0:02:43.3]} 8. Bd3 {[%clk
0:02:55.6]} 8... Bxd3 {[%clk 0:02:43.2]} 9. Qxd3 {[%clk 0:02:56.5]} 9... Nbd7
{[%clk 0:02:42.4]} 10. O-O {[%clk 0:02:56.5]} 10... O-O {[%clk 0:02:41.6]} 11.
Rab1 {[%clk 0:02:55.8]} 11... a5 {[%clk 0:02:41.7]} 12. a3 {[%clk 0:02:54.8]}
12... Ne4 {[%clk 0:02:30.8]} 13. Bf4 {[%clk 0:02:41.6]} 13... f5 {[%clk
0:02:26.8]} 14. Rfc1 {[%clk 0:02:39.5]} 14... Ndf6 {[%clk 0:02:19.9]} 15. Na4
{[%clk 0:02:32.7]} 15... b5 {[%clk 0:02:14.7]} 16. Nc3 {[%clk 0:02:31.6]} 16...
Qe8 {[%clk 0:02:03.8]} 17. Be5 {[%clk 0:02:28.1]} 17... Ng4 {[%clk 0:01:58]} 18.
Nd1 {[%clk 0:02:23.6]} 18... Rc8 {[%clk 0:01:43.2]} 19. h3 {[%clk 0:02:17.6]}
19... Nxe5 {[%clk 0:01:40.6]} 20. Nxe5 {[%clk 0:02:18.5]} 20... Bd6 {[%clk
0:01:38.8]} 21. Nf3 {[%clk 0:02:14]} 21... f4 {[%clk 0:01:36.9]} 22. Rc2 {[%clk
0:02:12.6]} 22... fxe3 {[%clk 0:01:37]} 23. Qxe3 {[%clk 0:02:11.8]} 23... Qg6
{[%clk 0:01:33.4]} 24. Qd3 {[%clk 0:02:07.3]} 24... Rf6 {[%clk 0:01:25.5]} 25.
Rbc1 {[%clk 0:02:02.2]} 25... Rcf8 {[%clk 0:01:18.5]} 26. Ne5 {[%clk 0:01:31.5]}
26... Qf5 {[%clk 0:01:12.8]} 27. f3 {[%clk 0:01:26.4]} 27... Bxe5 {[%clk
0:01:09.8]} 28. dxe5 {[%clk 0:01:22.8]} 28... Qxe5 {[%clk 0:01:05.1]} 29. fxe4
{[%clk 0:01:19.9]} 29... dxe4 {[%clk 0:00:54.9]} 30. Qb3+ {[%clk 0:01:15.4]}
30... Kh8 {[%clk 0:00:53.8]} 31. Ne3 {[%clk 0:01:15.5]} 31... Qg3 {[%clk
0:00:53.1]} 32. Rxc6 {[%clk 0:00:48.8]} 32... Rf2 {[%clk 0:00:52.9]} 33. Rc8
{[%clk 0:00:36]} 33... h6 {[%clk 0:00:52.8]} 34. Rxf8+ {[%clk 0:00:34.8]} 34...
Rxf8 {[%clk 0:00:53.7]} 35. Qc3 {[%clk 0:00:34.2]} 35... Qf2+ {[%clk 0:00:50.3]}
36. Kh1 {[%clk 0:00:33.6]} 36... Rd8 {[%clk 0:00:50.4]} 37. Rf1 {[%clk
0:00:31.2]} 37... Qe2 {[%clk 0:00:49.9]} 38. Rf7 {[%clk 0:00:30]} 38... Rg8
{[%clk 0:00:46]} 39. Ng4 {[%clk 0:00:27.4]} 39... Qd1+ {[%clk 0:00:44.2]} 40.
Kh2 {[%clk 0:00:27.5]} 40... Qd6+ {[%clk 0:00:44.6]} 41. Qe5 {[%clk 0:00:26.2]}
41... Qg6 {[%clk 0:00:44.7]} 42. Re7 {[%clk 0:00:24.1]} 42... b4 {[%clk
0:00:42.8]} 43. Qxe4 {[%clk 0:00:23.5]} 43... Qd6+ {[%clk 0:00:42.9]} 44. Qe5
{[%clk 0:00:22.8]} 44... Qb6 {[%clk 0:00:43.5]} 45. Re6 {[%clk 0:00:21.1]} 1-0

[Event "*** Titled Tuesday Blitz"]
[Site "Chess.com"]
[Date "2020.04.07"]
[Round "9"]
[White "DrVelja"]
[Black "Kimster98"]
[Result "1-0"]
[WhiteElo "2644"]
[BlackElo "2501"]
[TimeControl "180+1"]
[EndTime "14:47:16 PDT"]
[Termination "DrVelja won on time"]

1. e4 {[%clk 0:03:00.9]} 1... e5 {[%clk 0:02:59]} 2. Nf3 {[%clk 0:03:01]} 2...
Nc6 {[%clk 0:02:58.5]} 3. Bb5 {[%clk 0:03:01.5]} 3... Nf6 {[%clk 0:02:58.1]} 4.
d3 {[%clk 0:02:59.3]} 4... Bc5 {[%clk 0:02:57.4]} 5. Bxc6 {[%clk 0:02:56.6]}
5... dxc6 {[%clk 0:02:57.3]} 6. Nbd2 {[%clk 0:02:57.1]} 6... Be6 {[%clk
0:02:57]} 7. O-O {[%clk 0:02:54.5]} 7... Nd7 {[%clk 0:02:52.1]} 8. Nb3 {[%clk
0:02:52.2]} 8... Bd6 {[%clk 0:02:50.9]} 9. Na5 {[%clk 0:02:45]} 9... Rb8 {[%clk
0:02:34.5]} 10. Ng5 {[%clk 0:02:45.4]} 10... Nf8 {[%clk 0:02:14.8]} 11. Qh5
{[%clk 0:02:36.6]} 11... g6 {[%clk 0:02:04.8]} 12. Qh6 {[%clk 0:02:27.1]} 12...
f6 {[%clk 0:02:00.4]} 13. Nxe6 {[%clk 0:02:20]} 13... Nxe6 {[%clk 0:02:01.3]}
14. Nc4 {[%clk 0:02:19.8]} 14... Bf8 {[%clk 0:01:57.9]} 15. Qh3 {[%clk
0:02:18.3]} 15... Qd7 {[%clk 0:01:56.4]} 16. Be3 {[%clk 0:01:57.3]} 16... c5
{[%clk 0:01:48.9]} 17. g3 {[%clk 0:01:54.8]} 17... Nd4 {[%clk 0:01:33.7]} 18.
Qxd7+ {[%clk 0:01:54.5]} 18... Kxd7 {[%clk 0:01:33.7]} 19. Bxd4 {[%clk
0:01:55.4]} 19... cxd4 {[%clk 0:01:34.1]} 20. f4 {[%clk 0:01:55.7]} 20... Ke6
{[%clk 0:01:31.1]} 21. a4 {[%clk 0:01:53.6]} 21... b6 {[%clk 0:01:22.8]} 22. Rf3
{[%clk 0:01:43.2]} 22... Be7 {[%clk 0:01:21.7]} 23. Raf1 {[%clk 0:01:41.2]}
23... Rbf8 {[%clk 0:00:40]} 24. h4 {[%clk 0:01:36.7]} 24... Rhg8 {[%clk
0:00:28.2]} 25. Kh2 {[%clk 0:01:34.7]} 25... Bb4 {[%clk 0:00:09]} 26. f5+ {[%clk
0:01:30.1]} 26... Ke7 {[%clk 0:00:07.5]} 27. g4 {[%clk 0:01:30.3]} 27... g5
{[%clk 0:00:07.2]} 28. Rh3 {[%clk 0:01:30.7]} 28... h6 {[%clk 0:00:04.9]} 29.
Kg2 {[%clk 0:01:30.5]} 29... Rh8 {[%clk 0:00:01.7]} 30. Rfh1 {[%clk 0:01:28.9]}
30... Rfg8 {[%clk 0:00:01.2]} 31. hxg5 {[%clk 0:01:26.6]} 31... Rxg5 {[%clk
0:00:02.1]} 32. Kf3 {[%clk 0:01:26.4]} 32... Kf7 {[%clk 0:00:02.8]} 33. Rxh6
{[%clk 0:01:26.2]} 33... Rxh6 {[%clk 0:00:03.7]} 34. Rxh6 {[%clk 0:01:26.7]}
34... Kg7 {[%clk 0:00:04.6]} 35. Rh1 {[%clk 0:01:25.5]} 35... Kg8 {[%clk
0:00:04.1]} 36. b3 {[%clk 0:01:10.9]} 36... Rg7 {[%clk 0:00:03.2]} 37. Rh6
{[%clk 0:01:06.9]} 37... Be7 {[%clk 0:00:03.7]} 38. Nd2 {[%clk 0:01:02.2]} 38...
a6 {[%clk 0:00:02.2]} 39. Nf1 {[%clk 0:01:02.1]} 39... b5 {[%clk 0:00:02.7]} 40.
axb5 {[%clk 0:01:03]} 40... axb5 {[%clk 0:00:03.6]} 41. Ng3 {[%clk 0:01:03.6]}
41... c5 {[%clk 0:00:03.8]} 42. Nh5 {[%clk 0:01:03.7]} 42... Rf7 {[%clk
0:00:04.4]} 43. g5 {[%clk 0:01:04.1]} 43... fxg5 {[%clk 0:00:04.1]} 44. Kg4
{[%clk 0:01:04.8]} 44... Bd8 {[%clk 0:00:03.7]} 45. Rd6 {[%clk 0:01:02.7]} 45...
Be7 {[%clk 0:00:02.4]} 46. Rb6 {[%clk 0:01:01.3]} 46... b4 {[%clk 0:00:01.4]}
47. Rb7 {[%clk 0:01:01.4]} 1-0

[Event "*** Titled Tuesday Blitz"]
[Site "Chess.com"]
[Date "2020.04.07"]
[Round "9"]
[White "wnstop"]
[Black "Taabling"]
[Result "1-0"]
[WhiteElo "2593"]
[BlackElo "2328"]
[TimeControl "180+1"]
[EndTime "14:47:17 PDT"]
[Termination "wnstop won on time"]

1. e4 {[%clk 0:02:44.7]} 1... e5 {[%clk 0:02:57.9]} 2. Nf3 {[%clk 0:02:44.7]}
2... d5 {[%clk 0:02:57.8]} 3. exd5 {[%clk 0:02:43.1]} 3... Bd6 {[%clk
0:02:56.9]} 4. d4 {[%clk 0:02:32.6]} 4... e4 {[%clk 0:02:56.3]} 5. Ne5 {[%clk
0:02:32.6]} 5... Nf6 {[%clk 0:02:56.9]} 6. Be2 {[%clk 0:02:31.2]} 6... O-O
{[%clk 0:02:53.1]} 7. Bg5 {[%clk 0:02:29.9]} 7... h6 {[%clk 0:02:47.9]} 8. Bh4
{[%clk 0:02:30]} 8... Re8 {[%clk 0:02:44.8]} 9. c4 {[%clk 0:02:26.4]} 9... c5
{[%clk 0:02:36.1]} 10. dxc6 {[%clk 0:02:23.4]} 10... Nxc6 {[%clk 0:02:33.5]} 11.
Nxc6 {[%clk 0:02:22.8]} 11... bxc6 {[%clk 0:02:34.4]} 12. Nc3 {[%clk 0:02:22.4]}
12... e3 {[%clk 0:02:30.9]} 13. fxe3 {[%clk 0:01:42.7]} 13... Rxe3 {[%clk
0:02:02.8]} 14. Bf2 {[%clk 0:01:42.1]} 14... Re8 {[%clk 0:01:51.5]} 15. O-O
{[%clk 0:01:41.9]} 15... Qc7 {[%clk 0:01:51.7]} 16. g3 {[%clk 0:01:39.9]} 16...
Bh3 {[%clk 0:01:47.8]} 17. Re1 {[%clk 0:01:39.9]} 17... Rad8 {[%clk 0:01:27.8]}
18. Bf3 {[%clk 0:01:38.4]} 18... h5 {[%clk 0:01:16.9]} 19. Rxe8+ {[%clk
0:01:32.5]} 19... Rxe8 {[%clk 0:01:16.1]} 20. c5 {[%clk 0:01:32.7]} 20... Bf8
{[%clk 0:01:12.6]} 21. Qd2 {[%clk 0:01:32.6]} 21... Ng4 {[%clk 0:01:08.6]} 22.
Re1 {[%clk 0:01:30.8]} 22... Qc8 {[%clk 0:01:02.6]} 23. Rxe8 {[%clk 0:01:22.2]}
23... Qxe8 {[%clk 0:01:03.5]} 24. Qe2 {[%clk 0:01:22.4]} 24... Qd7 {[%clk
0:00:57.3]} 25. Qe4 {[%clk 0:01:10.4]} 25... Nxf2 {[%clk 0:00:54.1]} 26. Kxf2
{[%clk 0:01:11.3]} 26... g6 {[%clk 0:00:51.5]} 27. b4 {[%clk 0:01:03.8]} 27...
Bg7 {[%clk 0:00:48]} 28. Ne2 {[%clk 0:01:03.8]} 28... Be6 {[%clk 0:00:34.8]} 29.
a4 {[%clk 0:00:48.2]} 29... a5 {[%clk 0:00:30.2]} 30. b5 {[%clk 0:00:44.6]}
30... cxb5 {[%clk 0:00:19.2]} 31. c6 {[%clk 0:00:44.7]} 31... Qc8 {[%clk
0:00:18.1]} 32. axb5 {[%clk 0:00:44.6]} 32... a4 {[%clk 0:00:17.1]} 33. b6
{[%clk 0:00:40.5]} 33... a3 {[%clk 0:00:14.8]} 34. b7 {[%clk 0:00:39.8]} 34...
Qb8 {[%clk 0:00:14.2]} 35. Qf4 {[%clk 0:00:39.3]} 35... Qxf4 {[%clk 0:00:09.7]}
36. gxf4 {[%clk 0:00:39.4]} 36... a2 {[%clk 0:00:09.5]} 37. b8=Q+ {[%clk
0:00:39.3]} 37... Kh7 {[%clk 0:00:10.4]} 38. Qb2 {[%clk 0:00:38.2]} 38... Bc4
{[%clk 0:00:08.8]} 39. c7 {[%clk 0:00:36.4]} 39... Be6 {[%clk 0:00:07.7]} 40.
Bb7 {[%clk 0:00:33]} 1-0

[Event "*** Titled Tuesday Blitz"]
[Site "Chess.com"]
[Date "2020.04.07"]
[Round "9"]
[White "benko_008"]
[Black "mshuaau0"]
[Result "1/2-1/2"]
[WhiteElo "2387"]
[BlackElo "2220"]
[TimeControl "180+1"]
[EndTime "14:47:20 PDT"]
[Termination "Game drawn by repetition"]

1. Nf3 {[%clk 0:03:00.9]} 1... d5 {[%clk 0:02:59.6]} 2. d4 {[%clk 0:03:00]} 2...
e6 {[%clk 0:02:59.5]} 3. c4 {[%clk 0:02:59.5]} 3... Nf6 {[%clk 0:02:59.1]} 4. e3
{[%clk 0:02:56.6]} 4... Be7 {[%clk 0:02:53.6]} 5. Nbd2 {[%clk 0:02:56.1]} 5...
O-O {[%clk 0:02:53.5]} 6. b3 {[%clk 0:02:55.9]} 6... c5 {[%clk 0:02:51.8]} 7.
Bb2 {[%clk 0:02:55.5]} 7... b6 {[%clk 0:02:51.5]} 8. g3 {[%clk 0:02:53]} 8...
Bb7 {[%clk 0:02:50.2]} 9. Bg2 {[%clk 0:02:52.8]} 9... Nc6 {[%clk 0:02:45.1]} 10.
O-O {[%clk 0:02:51.9]} 10... cxd4 {[%clk 0:02:44.5]} 11. exd4 {[%clk 0:02:50.9]}
11... Rc8 {[%clk 0:02:42.6]} 12. Qe2 {[%clk 0:02:47.6]} 12... dxc4 {[%clk
0:02:35.6]} 13. bxc4 {[%clk 0:02:44.5]} 13... Ba6 {[%clk 0:02:34.8]} 14. Rac1
{[%clk 0:02:37.9]} 14... Na5 {[%clk 0:02:34.2]} 15. Ne5 {[%clk 0:02:37.3]} 15...
Nd7 {[%clk 0:02:33.7]} 16. Ng4 {[%clk 0:01:55.6]} 16... Bb4 {[%clk 0:02:28.9]}
17. Ne3 {[%clk 0:01:38.5]} 17... Bxd2 {[%clk 0:02:19.3]} 18. Qxd2 {[%clk
0:01:34]} 18... Nxc4 {[%clk 0:02:19.1]} 19. Nxc4 {[%clk 0:01:23.4]} 19... Bxc4
{[%clk 0:02:18.5]} 20. Rfe1 {[%clk 0:01:21.3]} 20... Nf6 {[%clk 0:02:17.9]} 21.
d5 {[%clk 0:01:17.5]} 21... Bxd5 {[%clk 0:02:14.1]} 22. Rxc8 {[%clk 0:00:54.2]}
22... Qxc8 {[%clk 0:02:13.9]} 23. Bxf6 {[%clk 0:00:52.3]} 23... gxf6 {[%clk
0:02:13.9]} 24. Bxd5 {[%clk 0:00:49.8]} 24... exd5 {[%clk 0:01:48.7]} 25. Qxd5
{[%clk 0:00:47.5]} 25... Re8 {[%clk 0:01:47.7]} 26. Rxe8+ {[%clk 0:00:38]} 26...
Qxe8 {[%clk 0:01:48.6]} 27. Qb7 {[%clk 0:00:32.3]} 27... Qa4 {[%clk 0:01:33.6]}
28. Qd5 {[%clk 0:00:22.9]} 28... Kg7 {[%clk 0:01:30.1]} 29. h4 {[%clk
0:00:21.9]} 29... a6 {[%clk 0:01:28.7]} 30. h5 {[%clk 0:00:21.1]} 30... Qb5
{[%clk 0:01:27.4]} 31. Qf3 {[%clk 0:00:19.3]} 31... Qg5 {[%clk 0:01:22.5]} 32.
Qe2 {[%clk 0:00:15.3]} 32... b5 {[%clk 0:01:20.7]} 33. a4 {[%clk 0:00:14.6]}
33... Kh6 {[%clk 0:00:54.4]} 34. axb5 {[%clk 0:00:13.3]} 34... axb5 {[%clk
0:00:54.2]} 35. Qe8 {[%clk 0:00:10.1]} 35... Qxh5 {[%clk 0:00:22.4]} 36. Qf8+
{[%clk 0:00:06.9]} 36... Kg6 {[%clk 0:00:22.2]} 37. Qg8+ {[%clk 0:00:04.4]}
37... Kh6 {[%clk 0:00:22.5]} 38. Qf8+ {[%clk 0:00:04.2]} 38... Kg6 {[%clk
0:00:22.9]} 39. Qg8+ {[%clk 0:00:04.5]} 39... Kf5 {[%clk 0:00:23.3]} 40. Qc8+
{[%clk 0:00:04]} 40... Kg6 {[%clk 0:00:23.1]} 41. Qg8+ {[%clk 0:00:03.6]}
1/2-1/2

[Event "*** Titled Tuesday Blitz"]
[Site "Chess.com"]
[Date "2020.04.07"]
[Round "9"]
[White "boasovietica"]
[Black "vinniethepooh"]
[Result "0-1"]
[WhiteElo "2447"]
[BlackElo "2616"]
[TimeControl "180+1"]
[EndTime "14:47:24 PDT"]
[Termination "vinniethepooh won on time"]

1. e4 {[%clk 0:03:00.9]} 1... c5 {[%clk 0:03:00.2]} 2. Nf3 {[%clk 0:03:00]} 2...
d6 {[%clk 0:03:00.6]} 3. Nc3 {[%clk 0:02:55.5]} 3... Nf6 {[%clk 0:03:00.6]} 4.
Bb5+ {[%clk 0:02:45.9]} 4... Bd7 {[%clk 0:03:00.4]} 5. Bxd7+ {[%clk 0:02:45.7]}
5... Qxd7 {[%clk 0:02:59.9]} 6. O-O {[%clk 0:02:43.7]} 6... Nc6 {[%clk
0:03:00.1]} 7. d4 {[%clk 0:02:42.4]} 7... cxd4 {[%clk 0:03:01]} 8. Nxd4 {[%clk
0:02:42.4]} 8... g6 {[%clk 0:02:58.5]} 9. Re1 {[%clk 0:02:38.1]} 9... Bg7 {[%clk
0:02:58]} 10. Nxc6 {[%clk 0:02:29.9]} 10... bxc6 {[%clk 0:02:57.2]} 11. Bf4
{[%clk 0:02:15.5]} 11... Nh5 {[%clk 0:02:49.5]} 12. Be3 {[%clk 0:02:11.9]} 12...
O-O {[%clk 0:02:48.1]} 13. Bd4 {[%clk 0:02:07.7]} 13... e5 {[%clk 0:02:43.8]}
14. Be3 {[%clk 0:02:06.5]} 14... Nf4 {[%clk 0:02:42.6]} 15. Bxf4 {[%clk
0:01:59.6]} 15... exf4 {[%clk 0:02:43.5]} 16. Qd3 {[%clk 0:01:59.1]} 16... Rab8
{[%clk 0:02:39.6]} 17. b3 {[%clk 0:01:55]} 17... Qe6 {[%clk 0:02:38.9]} 18. Rad1
{[%clk 0:01:54.2]} 18... Rfd8 {[%clk 0:02:38.8]} 19. Ne2 {[%clk 0:01:53.9]}
19... Be5 {[%clk 0:02:36.3]} 20. Nd4 {[%clk 0:01:53.2]} 20... Qc8 {[%clk
0:02:28.7]} 21. Qc4 {[%clk 0:01:45.7]} 21... Rb6 {[%clk 0:02:16.7]} 22. Nf3
{[%clk 0:01:43.3]} 22... Qc7 {[%clk 0:02:12.9]} 23. Nxe5 {[%clk 0:01:41.8]}
23... dxe5 {[%clk 0:02:13.8]} 24. Rd3 {[%clk 0:01:29.9]} 24... Rxd3 {[%clk
0:02:12.2]} 25. Qxd3 {[%clk 0:01:29.6]} 25... c5 {[%clk 0:02:05.4]} 26. Rd1
{[%clk 0:01:27.7]} 26... c4 {[%clk 0:02:04.1]} 27. Qc3 {[%clk 0:01:01.7]} 27...
Rd6 {[%clk 0:01:55]} 28. Rxd6 {[%clk 0:00:51.5]} 28... Qxd6 {[%clk 0:01:55.9]}
29. h3 {[%clk 0:00:43.5]} 29... cxb3 {[%clk 0:01:51.7]} 30. cxb3 {[%clk
0:00:43.3]} 30... a6 {[%clk 0:01:37.3]} 31. Kh2 {[%clk 0:00:40]} 31... h5 {[%clk
0:01:36.7]} 32. Qc4 {[%clk 0:00:32.7]} 32... Kg7 {[%clk 0:01:35.9]} 33. h4
{[%clk 0:00:19]} 33... Qd2 {[%clk 0:01:34.5]} 34. Qxa6 {[%clk 0:00:09.9]} 34...
Qxf2 {[%clk 0:01:33.2]} 35. Qb5 {[%clk 0:00:07.6]} 35... Qxh4+ {[%clk
0:01:31.5]} 36. Kg1 {[%clk 0:00:07.8]} 36... Qe1+ {[%clk 0:01:31.8]} 37. Kh2
{[%clk 0:00:07.6]} 37... Qg3+ {[%clk 0:01:30.5]} 38. Kg1 {[%clk 0:00:07.1]}
38... Qe1+ {[%clk 0:01:23.9]} 39. Kh2 {[%clk 0:00:07]} 39... Qxe4 {[%clk
0:01:24.2]} 40. a4 {[%clk 0:00:04.7]} 40... Qe3 {[%clk 0:01:20.9]} 41. a5 {[%clk
0:00:03.6]} 41... Qg3+ {[%clk 0:01:14]} 42. Kh1 {[%clk 0:00:03.9]} 42... f3
{[%clk 0:01:09.4]} 43. gxf3 {[%clk 0:00:04.2]} 43... Qxf3+ {[%clk 0:01:10.3]}
44. Kh2 {[%clk 0:00:04.5]} 44... Qf2+ {[%clk 0:01:07.2]} 45. Kh1 {[%clk
0:00:04.7]} 45... Qf3+ {[%clk 0:01:05.8]} 46. Kh2 {[%clk 0:00:04.4]} 46... Qf4+
{[%clk 0:01:06.3]} 47. Kh1 {[%clk 0:00:04.5]} 47... h4 {[%clk 0:01:05.3]} 48. a6
{[%clk 0:00:03.8]} 48... h3 {[%clk 0:01:04.8]} 49. Qb7 {[%clk 0:00:03.7]} 49...
e4 {[%clk 0:01:01.9]} 50. Qb5 {[%clk 0:00:01.2]} 50... Qf3+ {[%clk 0:01:00.5]}
0-1

[Event "*** Titled Tuesday Blitz"]
[Site "Chess.com"]
[Date "2020.04.07"]
[Round "9"]
[White "nihalsarin"]
[Black "gena217"]
[Result "1/2-1/2"]
[WhiteElo "3071"]
[BlackElo "2945"]
[TimeControl "180+1"]
[EndTime "14:47:25 PDT"]
[Termination "Game drawn by agreement"]

1. d4 {[%clk 0:03:00.9]} 1... Nf6 {[%clk 0:02:59.9]} 2. Bf4 {[%clk 0:03:00.4]}
2... d5 {[%clk 0:02:58.6]} 3. e3 {[%clk 0:03:00.2]} 3... c5 {[%clk 0:02:59.1]}
4. c3 {[%clk 0:02:59.1]} 4... Nc6 {[%clk 0:02:59.5]} 5. Nd2 {[%clk 0:02:59]}
5... Bf5 {[%clk 0:02:57]} 6. Ngf3 {[%clk 0:02:57.2]} 6... e6 {[%clk 0:02:56.6]}
7. Bb5 {[%clk 0:02:57.6]} 7... Nd7 {[%clk 0:02:53.2]} 8. O-O {[%clk 0:02:43.7]}
8... a6 {[%clk 0:02:46.5]} 9. Bxc6 {[%clk 0:02:41.4]} 9... bxc6 {[%clk
0:02:47.4]} 10. Qa4 {[%clk 0:02:35]} 10... Qb6 {[%clk 0:02:47]} 11. Qb3 {[%clk
0:02:20.9]} 11... c4 {[%clk 0:02:33.8]} 12. Qxb6 {[%clk 0:02:20.2]} 12... Nxb6
{[%clk 0:02:34.7]} 13. Rfc1 {[%clk 0:02:04.4]} 13... h6 {[%clk 0:02:25.7]} 14.
a4 {[%clk 0:02:00.9]} 14... a5 {[%clk 0:02:02.9]} 15. Bc7 {[%clk 0:01:54]} 15...
Ra6 {[%clk 0:01:57.9]} 16. b3 {[%clk 0:01:15.1]} 16... cxb3 {[%clk 0:01:49.3]}
17. Nxb3 {[%clk 0:01:16]} 17... Nc4 {[%clk 0:01:31.8]} 18. Ne5 {[%clk
0:01:15.8]} 18... Nxe5 {[%clk 0:01:31.3]} 19. dxe5 {[%clk 0:01:15]} 19... Kd7
{[%clk 0:01:23.2]} 20. Bxa5 {[%clk 0:01:01.8]} 20... c5 {[%clk 0:01:22.6]} 21.
c4 {[%clk 0:01:02.2]} 21... Bd3 {[%clk 0:01:15.2]} 22. cxd5 {[%clk 0:01:00.5]}
22... c4 {[%clk 0:01:14.8]} 23. d6 {[%clk 0:00:59.9]} 23... Bxd6 {[%clk
0:01:03.4]} 24. exd6 {[%clk 0:00:20.1]} 24... cxb3 {[%clk 0:01:03.3]} 25. Bc3
{[%clk 0:00:09.8]} 25... f6 {[%clk 0:00:56.4]} 26. Bb2 {[%clk 0:00:09.5]} 26...
Rxd6 {[%clk 0:00:54.2]} 27. Rd1 {[%clk 0:00:09.8]} 27... Ra8 {[%clk 0:00:39.6]}
28. a5 {[%clk 0:00:07.7]} 28... Bc2 {[%clk 0:00:38.6]} 29. Rxd6+ {[%clk
0:00:07.7]} 29... Kxd6 {[%clk 0:00:39.5]} 30. Kf1 {[%clk 0:00:07.7]} 30... Kc5
{[%clk 0:00:36.4]} 31. Ke1 {[%clk 0:00:08.3]} 31... Kb5 {[%clk 0:00:37.1]} 32.
Kd2 {[%clk 0:00:06.6]} 32... Rxa5 {[%clk 0:00:34]} 33. Rxa5+ {[%clk 0:00:07.5]}
33... Kxa5 {[%clk 0:00:34.8]} 34. f3 {[%clk 0:00:05.1]} 34... Kb4 {[%clk
0:00:32.3]} 35. Bc3+ {[%clk 0:00:04.1]} 35... Kc4 {[%clk 0:00:32.4]} 36. Bb2
{[%clk 0:00:04.2]} 36... f5 {[%clk 0:00:31.9]} 37. Bxg7 {[%clk 0:00:03.7]} 37...
h5 {[%clk 0:00:32.6]} 38. h4 {[%clk 0:00:02.7]} 38... Kd5 {[%clk 0:00:28.5]} 39.
Bb2 {[%clk 0:00:03]} 39... e5 {[%clk 0:00:28.7]} 40. f4 {[%clk 0:00:03.4]} 40...
exf4 {[%clk 0:00:27.7]} 41. exf4 {[%clk 0:00:04.3]} 41... Be4 {[%clk 0:00:26.9]}
42. g3 {[%clk 0:00:03.9]} 1/2-1/2

[Event "*** Titled Tuesday Blitz"]
[Site "Chess.com"]
[Date "2020.04.07"]
[Round "9"]
[White "Parhamov"]
[Black "GOGIEFF"]
[Result "1-0"]
[WhiteElo "3089"]
[BlackElo "2938"]
[TimeControl "180+1"]
[EndTime "14:47:27 PDT"]
[Termination "Parhamov won on time"]

1. e4 {[%clk 0:03:00.9]} 1... c5 {[%clk 0:02:59.8]} 2. Nf3 {[%clk 0:03:00.5]}
2... d6 {[%clk 0:03:00.1]} 3. d4 {[%clk 0:03:01]} 3... cxd4 {[%clk 0:03:00.7]}
4. Nxd4 {[%clk 0:03:01.9]} 4... Nf6 {[%clk 0:03:00.9]} 5. Nc3 {[%clk 0:03:02.3]}
5... a6 {[%clk 0:03:01.5]} 6. h3 {[%clk 0:03:02.9]} 6... Nc6 {[%clk 0:02:58.7]}
7. g4 {[%clk 0:03:01.5]} 7... Qb6 {[%clk 0:02:57.7]} 8. Nb3 {[%clk 0:02:59.1]}
8... e6 {[%clk 0:02:57.8]} 9. g5 {[%clk 0:02:58.2]} 9... Nd7 {[%clk 0:02:56.4]}
10. h4 {[%clk 0:02:59.1]} 10... Qc7 {[%clk 0:02:55.6]} 11. Bf4 {[%clk
0:02:53.3]} 11... b5 {[%clk 0:02:53.9]} 12. a3 {[%clk 0:02:50.2]} 12... Rb8
{[%clk 0:02:43.9]} 13. h5 {[%clk 0:02:50.1]} 13... Nb6 {[%clk 0:02:39.7]} 14.
Qf3 {[%clk 0:02:33.2]} 14... Ne5 {[%clk 0:02:25.1]} 15. Qg3 {[%clk 0:02:33.1]}
15... Na4 {[%clk 0:02:23.2]} 16. h6 {[%clk 0:02:03.5]} 16... Nxb2 {[%clk
0:02:14.7]} 17. Bxe5 {[%clk 0:01:58.7]} 17... dxe5 {[%clk 0:02:13.5]} 18. hxg7
{[%clk 0:01:58.1]} 18... Bxg7 {[%clk 0:02:13]} 19. Be2 {[%clk 0:01:48.3]} 19...
Bb7 {[%clk 0:02:04]} 20. Rh3 {[%clk 0:01:36.6]} 20... Rd8 {[%clk 0:01:34.3]} 21.
Qh2 {[%clk 0:01:35.8]} 21... Na4 {[%clk 0:01:24.1]} 22. Nxa4 {[%clk 0:01:31.9]}
22... bxa4 {[%clk 0:01:24.2]} 23. Nd2 {[%clk 0:01:31.7]} 23... Qxc2 {[%clk
0:01:15.2]} 24. Rd1 {[%clk 0:01:31.7]} 24... Bxe4 {[%clk 0:01:13]} 25. Nxe4
{[%clk 0:01:30.8]} 25... Rxd1+ {[%clk 0:01:10.8]} 26. Bxd1 {[%clk 0:01:31.7]}
26... Qxe4+ {[%clk 0:01:11]} 27. Re3 {[%clk 0:01:32.4]} 27... Qd4 {[%clk
0:01:07.9]} 28. Qh5 {[%clk 0:01:31]} 28... O-O {[%clk 0:01:02.2]} 29. Bc2 {[%clk
0:01:28.5]} 29... Rc8 {[%clk 0:00:50.2]} 30. Qxh7+ {[%clk 0:01:24]} 30... Kf8
{[%clk 0:00:50.1]} 31. Qe4 {[%clk 0:01:17.6]} 31... Qa1+ {[%clk 0:00:21.8]} 32.
Bd1 {[%clk 0:01:14.4]} 32... Qc1 {[%clk 0:00:19.4]} 33. Qxa4 {[%clk 0:01:05.2]}
33... Rd8 {[%clk 0:00:18]} 34. Qc2 {[%clk 0:00:49.1]} 34... Qa1 {[%clk
0:00:17.7]} 35. Rd3 {[%clk 0:00:43.1]} 35... Rb8 {[%clk 0:00:13]} 36. Qc7 {[%clk
0:00:40.6]} 36... Re8 {[%clk 0:00:06.6]} 37. Rd7 {[%clk 0:00:30.6]} 37... e4
{[%clk 0:00:03.8]} 38. Rxf7+ {[%clk 0:00:29.3]} 38... Kg8 {[%clk 0:00:04.3]} 39.
Qd7 {[%clk 0:00:28.5]} 39... Qc3+ {[%clk 0:00:02.2]} 40. Kf1 {[%clk 0:00:26.6]}
40... Qd3+ {[%clk 0:00:01.6]} 41. Qxd3 {[%clk 0:00:19.9]} 41... exd3 {[%clk
0:00:02.5]} 42. Rd7 {[%clk 0:00:20.5]} 1-0